bitfinex/quotes_BTCUSD_20251110
["timestamp","ask_amount","ask_price","bid_price","bid_amount"]
[1762737102479,0.00514382,106450.0,106440.0,3.03443105]
[1762737102681,0.00514382,106450.0,106440.0,3.45223194]
[1762737103099,0.00814382,106450.0,106440.0,3.45223194]
[1762737103270,0.00514382,106450.0,106440.0,2.68899472]
[1762737103446,0.00014382,106450.0,106440.0,3.45223194]
[1762737103653,0.00014382,106450.0,106440.0,3.31835878]
[1762737103861,0.00114382,106450.0,106440.0,3.45259467]
[1762737104402,0.00114382,106450.0,106440.0,3.45659467]
[1762737104580,0.00114382,106450.0,106440.0,3.46159467]
[1762737105036,0.00114382,106450.0,106440.0,1.50301378]
[1762737105240,0.00114382,106450.0,106440.0,1.12139517]
[1762737105443,0.00114382,106450.0,106440.0,1.96866158]
[1762737105660,0.0002,106470.0,106460.0,0.38786398]
[1762737105875,0.0002,106470.0,106460.0,3.52632347]
[1762737106087,0.0002,106470.0,106460.0,3.35103664]
[1762737106322,0.0002,106480.0,106470.0,3.09246495]
[1762737106533,0.0002,106480.0,106470.0,3.47972356]
[1762737106736,0.0002,106480.0,106470.0,3.62246877]
[1762737106941,0.00136279,106480.0,106470.0,3.62246877]
[1762737107573,0.00236279,106480.0,106470.0,3.62646877]
[1762737107779,0.00236279,106480.0,106470.0,3.63146877]
[1762737108901,0.00236279,106480.0,106470.0,3.17435016]
[1762737109092,0.00236279,106480.0,106470.0,3.24521518]
[1762737109565,0.00236279,106480.0,106470.0,3.06363518]
[1762737110379,0.00236279,106480.0,106470.0,3.09180682]
[1762737111379,0.00236279,106480.0,106470.0,2.97908682]
[1762737111574,0.00236279,106480.0,106470.0,3.09180682]
[1762737112359,0.00236279,106480.0,106470.0,1.43339518]
[1762737112607,0.00236279,106480.0,106470.0,4.05119607]
[1762737112757,0.00236279,106480.0,106470.0,3.66957746]
[1762737113577,0.00236279,106480.0,106470.0,3.66923508]
[1762737113785,0.00236279,106480.0,106470.0,3.55655508]
[1762737114353,0.00236279,106480.0,106470.0,3.66923508]
[1762737114542,0.00236279,106480.0,106470.0,2.84493508]
[1762737115296,0.0004,106500.0,106490.0,0.38781106]
[1762737115508,0.00087951,106500.0,106490.0,3.48828451]
[1762737115729,0.00087951,106500.0,106490.0,3.49110451]
[1762737115938,0.00087951,106500.0,106490.0,3.49486013]
[1762737116379,0.00087951,106500.0,106490.0,3.50486012]
[1762737116579,0.00087951,106500.0,106490.0,2.75616013]
[1762737116747,0.00087951,106500.0,106490.0,2.36624013]
[1762737117171,0.00087951,106500.0,106490.0,2.25056013]
[1762737117373,0.00087951,106500.0,106490.0,2.36324013]
[1762737117559,0.00087951,106500.0,106490.0,2.36824013]
[1762737118454,0.00087951,106500.0,106490.0,2.36524013]
[1762737118621,0.00087951,106500.0,106490.0,2.36924013]
[1762737118996,0.00087951,106500.0,106490.0,2.23404013]
[1762737120520,0.00190001,106530.0,106520.0,3.51017766]
[1762737120708,0.0020438,106530.0,106520.0,3.51299766]
[1762737120908,0.0020438,106530.0,106520.0,2.9218451]
[1762737121108,0.0020438,106530.0,106520.0,3.30346371]
[1762737121312,0.0020438,106530.0,106520.0,2.9218451]
[1762737121486,0.0020438,106530.0,106520.0,3.30346371]
[1762737121894,0.0020438,106530.0,106520.0,3.31440136]
[1762737122209,0.0040438,106530.0,106520.0,3.69601997]
[1762737122603,0.0002,106540.0,106530.0,3.12854143]
[1762737122823,0.0002,106540.0,106530.0,3.28498428]
[1762737122987,0.219535,106590.0,106580.0,0.34105]
[1762737123189,0.219535,106590.0,106580.0,0.92837107]
[1762737123190,0.00887506,106590.0,106580.0,0.92837107]
[1762737123392,0.00014365,106590.0,106580.0,0.94518339]
[1762737123590,0.00014365,106590.0,106580.0,0.96323339]
[1762737123816,0.18777851,106590.0,106580.0,0.77558093]
[1762737124176,0.00014365,106590.0,106580.0,0.58161478]
[1762737124380,0.00014365,106590.0,106580.0,0.54065112]
[1762737124587,0.00014365,106590.0,106580.0,1.10992219]
[1762737124865,0.00014365,106590.0,106580.0,1.52652219]
[1762737125069,7.63759555,106600.0,106590.0,0.58763486]
[1762737125285,7.63759555,106600.0,106590.0,3.36453575]
[1762737125493,7.63759555,106600.0,106590.0,3.51010878]
[1762737125703,7.63759555,106600.0,106590.0,3.89172739]
[1762737125920,7.63759555,106600.0,106590.0,3.62274878]
[1762737126129,7.63759555,106600.0,106590.0,3.51010878]
[1762737126339,5.65299575,106600.0,106590.0,4.04676739]
[1762737126548,5.60364007,106600.0,106590.0,3.93239182]
[1762737126753,5.60364007,106600.0,106590.0,2.56713017]
[1762737126957,5.60364007,106600.0,106590.0,2.74874878]
[1762737127180,5.60364007,106600.0,106590.0,2.94874878]
[1762737127396,5.60364007,106600.0,106590.0,3.33036739]
[1762737127814,5.60364007,106600.0,106590.0,2.94874878]
[1762737128030,5.57550789,106600.0,106590.0,2.6067946]
[1762737128260,5.54737571,106600.0,106590.0,2.62012638]
[1762737128470,5.54737571,106600.0,106590.0,2.56613017]
[1762737128681,5.54737571,106600.0,106590.0,2.95074878]
[1762737128886,5.54737571,106600.0,106590.0,3.33236739]
[1762737129277,5.54737571,106600.0,106590.0,2.60079461]
[1762737129512,5.54737571,106600.0,106590.0,3.36403183]
[1762737130509,5.09479269,106600.0,106590.0,3.38403181]
[1762737130724,5.06666051,106600.0,106590.0,3.41216842]
[1762737130927,5.03852833,106600.0,106590.0,3.43203478]
[1762737131155,5.01039971,106600.0,106590.0,3.43203478]
[1762737131359,5.01039971,106600.0,106590.0,3.40216843]
[1762737131793,5.01039971,106600.0,106590.0,3.41216842]
[1762737131995,5.01039971,106600.0,106590.0,2.98104539]
[1762737133062,5.01039971,106600.0,106590.0,3.11029099]
[1762737136334,5.01039971,106600.0,106590.0,3.07410871]
[1762737136783,5.01039971,106600.0,106590.0,3.11029099]
[1762737136944,4.58410645,106600.0,106590.0,3.12029098]
[1762737137996,4.57868958,106600.0,106590.0,3.12029098]
[1762737138558,4.57868958,106600.0,106590.0,3.20321703]
[1762737139399,4.57868958,106600.0,106590.0,3.12029098]
[1762737140163,4.57868958,106600.0,106590.0,2.94949099]
[1762737140362,4.57868958,106600.0,106590.0,3.11205099]
[1762737141339,4.57868958,106600.0,106590.0,3.17731646]
[1762737141514,4.57868958,106600.0,106590.0,3.14113418]
[1762737141716,4.57868958,106600.0,106590.0,2.11123418]
[1762737141919,4.57868958,106600.0,106590.0,2.08309757]
[1762737142130,4.50271575,106600.0,106590.0,1.83751603]
[1762737142305,4.50271575,106600.0,106590.0,2.03751603]
[1762737142509,4.50271575,106600.0,106590.0,2.36051603]
[1762737142885,4.50271575,106600.0,106590.0,2.16051603]
[1762737143092,4.50271575,106600.0,106590.0,2.15351603]
[1762737143300,4.50271575,106600.0,106590.0,1.70988133]
[1762737143480,4.50271575,106600.0,106590.0,2.22174554]
[1762737143914,4.49771575,106600.0,106590.0,2.22174554]
[1762737144480,4.49771575,106600.0,106590.0,1.79089554]
[1762737144688,4.68533301,106600.0,106590.0,0.92999647]
[1762737145046,4.75079205,106600.0,106590.0,0.32371696]
[1762737145258,4.75079205,106600.0,106590.0,0.30413303]
[1762737145456,4.56317479,106600.0,106590.0,0.62713303]
[1762737145698,4.75032301,106600.0,106590.0,0.62713303]
[1762737145875,4.84814301,106600.0,106590.0,0.62713303]
[1762737146081,4.84861205,106600.0,106590.0,0.62413303]
[1762737146282,4.85014301,106600.0,106590.0,0.62413303]
[1762737146463,4.85261205,106600.0,106590.0,0.043]
[1762737147239,0.18763486,106590.0,106580.0,0.08204183]
[1762737147473,0.40721921,106590.0,106580.0,0.06522951]
[1762737147665,0.18765246,106580.0,106570.0,0.06522951]
[1762737147870,0.3426611,106580.0,106570.0,0.06537316]
[1762737148108,0.45525023,106580.0,106570.0,0.06537316]
[1762737148314,0.45525023,106580.0,106570.0,0.00014365]
[1762737148537,0.45525023,106580.0,106570.0,0.32314365]
[1762737148753,0.96564531,106580.0,106570.0,0.32314365]
[1762737148972,0.96564531,106580.0,106570.0,0.00014365]
[1762737149179,0.45525023,106580.0,106570.0,0.00014365]
[1762737149792,1.04521672,106580.0,106570.0,0.00014365]
[1762737150054,0.49143251,106580.0,106570.0,0.00014365]
[1762737150283,0.30777246,106580.0,106570.0,0.10829316]
[1762737150522,0.24278246,106580.0,106570.0,0.10805316]
[1762737150729,0.19565246,106580.0,106570.0,0.04282365]
[1762737150903,0.19612159,106580.0,106570.0,0.04282365]
[1762737151903,0.19612159,106580.0,106570.0,0.04265365]
[1762737152104,0.19612159,106580.0,106570.0,0.31324977]
[1762737152309,0.22142394,106590.0,106570.0,0.79224742]
[1762737152512,0.22095486,106590.0,106580.0,0.08292605]
[1762737152712,0.22095486,106590.0,106580.0,0.27057851]
[1762737152713,0.22350975,106590.0,106580.0,0.27057851]
[1762737152914,0.03587489,106590.0,106580.0,0.59357851]
[1762737153117,0.00255489,106590.0,106580.0,0.74457693]
[1762737153315,0.00255489,106590.0,106580.0,1.27061892]
[1762737153558,0.00755489,106590.0,106580.0,1.30163968]
[1762737153770,0.19518975,106590.0,106580.0,0.60312301]
[1762737154276,0.00255489,106590.0,106580.0,0.78860422]
[1762737154893,0.00255489,106590.0,106580.0,1.29946843]
[1762737155119,0.00255489,106590.0,106580.0,2.22576843]
[1762737155356,0.00255489,106590.0,106580.0,1.86236843]
[1762737155933,0.00355489,106590.0,106580.0,1.86236843]
[1762737156149,0.00255489,106590.0,106580.0,1.86536843]
[1762737156313,0.00255489,106590.0,106580.0,1.75142162]
[1762737156544,0.00255489,106590.0,106580.0,1.75342162]
[1762737157291,0.00255489,106590.0,106580.0,1.23763562]
[1762737157748,0.00255489,106590.0,106580.0,1.74852568]
[1762737157964,0.00255489,106590.0,106580.0,1.75326812]
[1762737158630,0.05075489,106590.0,106580.0,0.79910391]
[1762737158864,0.00255489,106590.0,106580.0,0.79910391]
[1762737159055,0.2618441,106590.0,106580.0,0.65425145]
[1762737159256,0.23838975,106590.0,106580.0,0.65425145]
[1762737159442,0.39444975,106590.0,106580.0,0.33125145]
[1762737159971,0.39444975,106590.0,106580.0,0.65425145]
[1762737161359,0.39444975,106590.0,106580.0,0.61145145]
[1762737161561,0.49255148,106590.0,106580.0,0.49374739]
[1762737161762,0.39444975,106590.0,106580.0,0.61859826]
[1762737161966,0.39444975,106590.0,106580.0,0.61861186]
[1762737162115,0.39444975,106590.0,106580.0,0.08206447]
[1762737162322,0.39491883,106590.0,106580.0,0.44786447]
[1762737162658,0.39444975,106590.0,106580.0,0.44786447]
[1762737163262,0.49255148,106590.0,106580.0,0.12486447]
[1762737163483,0.26825453,106590.0,106580.0,0.3658]
[1762737163682,0.31598545,106590.0,106580.0,0.3658]
[1762737164080,0.31598545,106590.0,106580.0,0.44800746]
[1762737164290,0.31598545,106590.0,106580.0,0.41512448]
[1762737164492,0.31598545,106590.0,106580.0,0.39870254]
[1762737164840,0.31598545,106590.0,106580.0,0.07570254]
[1762737165024,0.31645453,106590.0,106580.0,0.07570254]
[1762737165252,0.96113367,106590.0,106580.0,0.03290254]
[1762737165446,0.96160275,106590.0,106580.0,0.03290254]
[1762737165647,0.96160275,106590.0,106580.0,0.10035214]
[1762737165648,1.03751216,106590.0,106580.0,0.10035214]
[1762737165876,1.03751216,106590.0,106580.0,0.10035765]
[1762737166253,1.03751216,106590.0,106580.0,0.07566254]
[1762737166586,0.52664795,106590.0,106580.0,0.04276]
[1762737166913,0.53064795,106590.0,106580.0,0.04276]
[1762737167309,0.53064795,106590.0,106580.0,0.07566254]
[1762737167535,0.53017887,106590.0,106580.0,0.07566254]
[1762737167757,0.53064795,106590.0,106580.0,0.04276]
[1762737168186,0.18765246,106580.0,106570.0,0.08222702]
[1762737168322,0.47358133,106580.0,106570.0,0.03290254]
[1762737168665,0.45059391,106580.0,106570.0,0.03290254]
[1762737169571,0.96298899,106580.0,106570.0,0.03290254]
[1762737169772,0.73471656,106570.0,106560.0,0.04932448]
[1762737169922,1.03668175,106570.0,106560.0,0.04932448]
[1762737170340,1.07893258,106570.0,106560.0,0.04932448]
[1762737170514,0.22386996,106560.0,106550.0,0.41504448]
[1762737170739,0.37932996,106560.0,106550.0,0.41504448]
[1762737170872,0.37932996,106560.0,106550.0,0.41512902]
[1762737171261,0.37932996,106560.0,106550.0,0.09212902]
[1762737171468,0.4779009,106560.0,106550.0,0.09212902]
[1762737171677,0.47743169,106560.0,106550.0,0.09212902]
[1762737171887,0.4779009,106560.0,106550.0,0.09212902]
[1762737172077,0.98876511,106560.0,106550.0,0.04272]
[1762737172322,0.18774054,106530.0,106520.0,0.39703496]
[1762737172497,0.3145081,106530.0,106520.0,0.91444623]
[1762737172830,0.39098054,106530.0,106520.0,0.91444623]
[1762737173536,0.39098054,106530.0,106520.0,0.91844623]
[1762737173986,0.39098054,106530.0,106520.0,0.92444623]
[1762737174402,0.39098054,106530.0,106520.0,0.85268026]
[1762737174593,0.39098054,106530.0,106520.0,0.54012026]
[1762737174796,0.39098054,106530.0,106520.0,0.39238899]
[1762737174996,0.39098054,106530.0,106520.0,0.38838899]
[1762737175425,0.4488994,106530.0,106520.0,0.331]
[1762737175812,0.99594589,106530.0,106520.0,0.004]
[1762737176028,0.48555103,106530.0,106520.0,0.004]
[1762737176233,0.48508168,106530.0,106520.0,0.006]
[1762737176413,0.48555103,106530.0,106520.0,0.004]
[1762737176638,0.18775816,106520.0,106510.0,0.323]
[1762737176855,0.34309816,106520.0,106510.0,0.32314379]
[1762737177816,0.34309816,106520.0,106510.0,0.32514379]
[1762737178496,0.41035908,106520.0,106510.0,0.32514379]
[1762737178985,0.41035908,106520.0,106510.0,0.32614379]
[1762737179187,0.41035908,106520.0,106510.0,0.00314379]
[1762737179437,0.41082847,106520.0,106510.0,0.00314379]
[1762737179808,0.41082847,106520.0,106510.0,0.00014379]
[1762737180152,0.15580939,106520.0,106510.0,0.25468555]
[1762737180471,0.0472,106530.0,106510.0,0.96654976]
[1762737180703,0.0472,106530.0,106520.0,1.12998834]
[1762737180906,0.14449926,106550.0,106540.0,0.51072292]
[1762737181059,0.20797,106550.0,106540.0,0.55336292]
[1762737181263,0.3956753,106550.0,106540.0,0.52491237]
[1762737181464,0.3956753,106550.0,106540.0,0.71263529]
[1762737181664,0.11114,106550.0,106540.0,1.2234995]
[1762737181875,0.11114,106550.0,106540.0,1.24171769]
[1762737182080,0.0472,106550.0,106540.0,0.73085348]
[1762737182433,0.0482,106550.0,106540.0,0.73085348]
[1762737182626,0.0472,106550.0,106540.0,0.73085348]
[1762737183159,0.0472,106550.0,106540.0,0.75901412]
[1762737183361,0.0472,106550.0,106540.0,0.82468588]
[1762737183790,0.0472,106550.0,106540.0,1.33555009]
[1762737183985,0.0472,106550.0,106540.0,1.34055009]
[1762737184194,0.00046921,106560.0,106550.0,0.5107053]
[1762737184480,0.28451768,106560.0,106550.0,0.4757932]
[1762737184703,0.34845768,106560.0,106550.0,0.4757932]
[1762737184909,0.04866917,106570.0,106550.0,0.57304206]
[1762737185141,0.09683,106580.0,106570.0,0.323]
[1762737185440,0.16091431,106580.0,106570.0,0.55327007]
[1762737185651,0.16091431,106580.0,106570.0,0.3656]
[1762737186063,0.37202332,106580.0,106570.0,0.3656]
[1762737186271,0.16091431,106580.0,106570.0,0.55327007]
[1762737186449,0.06408431,106580.0,106570.0,0.72881085]
[1762737186821,0.06408431,106580.0,106570.0,0.75696425]
[1762737187174,0.00114431,106580.0,106570.0,1.31603846]
[1762737187516,0.00014431,106580.0,106570.0,3.62992022]
[1762737187927,0.00014431,106580.0,106570.0,3.63092022]
[1762737188152,0.00014431,106580.0,106570.0,3.6671025]
[1762737188355,0.00014431,106580.0,106570.0,3.51666172]
[1762737188527,0.00014431,106580.0,106570.0,3.81934201]
[1762737188746,0.00014431,106580.0,106570.0,2.04345973]
[1762737188882,0.06408431,106580.0,106570.0,1.53894973]
[1762737189096,0.00014431,106580.0,106570.0,1.53894973]
[1762737189291,0.00014431,106580.0,106570.0,1.67424973]
[1762737189503,0.00014431,106580.0,106570.0,1.54594973]
[1762737189705,0.00014431,106580.0,106570.0,1.49834973]
[1762737190019,0.00014431,106580.0,106570.0,1.53794973]
[1762737190218,0.00014431,106580.0,106570.0,1.54294973]
[1762737190631,0.16091431,106580.0,106570.0,1.47624973]
[1762737190829,0.16091431,106580.0,106570.0,1.51884973]
[1762737191249,0.00014431,106580.0,106570.0,1.54294973]
[1762737191785,0.00014431,106580.0,106570.0,1.59115973]
[1762737192396,0.00014431,106580.0,106570.0,2.53506973]
[1762737192750,0.00014431,106580.0,106570.0,2.73506973]
[1762737192956,0.00014431,106580.0,106570.0,2.60435691]
[1762737193784,0.00014431,106580.0,106570.0,2.53868515]
[1762737193985,0.00014431,106580.0,106570.0,2.62084347]
[1762737194143,0.00014431,106580.0,106570.0,2.53868515]
[1762737194744,0.00014431,106580.0,106570.0,2.60453187]
[1762737194972,5.85e-06,106580.0,106570.0,2.65702575]
[1762737195178,5.85e-06,106580.0,106570.0,2.45702575]
[1762737195378,5.85e-06,106580.0,106570.0,2.5864296]
[1762737195646,5.85e-06,106580.0,106570.0,1.61795128]
[1762737195844,5.85e-06,106580.0,106570.0,1.46051128]
[1762737196045,5.85e-06,106580.0,106570.0,2.86851128]
[1762737196227,5.85e-06,106580.0,106570.0,1.60531128]
[1762737196461,5.85e-06,106580.0,106570.0,1.41230128]
[1762737196763,5.85e-06,106580.0,106570.0,1.56301128]
[1762737196902,5.85e-06,106580.0,106570.0,0.94697982]
[1762737197117,0.34842831,106580.0,106570.0,0.22666642]
[1762737197325,0.16077585,106580.0,106570.0,0.59112036]
[1762737197501,0.16077585,106580.0,106570.0,0.91412036]
[1762737197705,0.16077585,106580.0,106570.0,0.72645029]
[1762737197963,0.1842324,106580.0,106570.0,0.72645029]
[1762737198264,0.37188486,106580.0,106570.0,0.20345029]
[1762737198466,0.34842831,106580.0,106570.0,0.20345029]
[1762737199255,0.34842831,106580.0,106570.0,0.19445029]
[1762737199461,0.34942831,106580.0,106570.0,0.19445029]
[1762737199661,0.34942831,106580.0,106570.0,0.04256]
[1762737200043,0.34989744,106580.0,106570.0,0.04256]
[1762737200243,0.34942831,106580.0,106570.0,0.04256]
[1762737200463,0.18767007,106570.0,106550.0,0.45348054]
[1762737200669,0.30842799,106570.0,106560.0,0.51690739]
[1762737200892,0.18767007,106570.0,106560.0,0.51690739]
[1762737201062,0.32326882,106570.0,106560.0,0.51690739]
[1762737201257,0.39664007,106570.0,106560.0,0.04256]
[1762737202425,0.39664007,106570.0,106560.0,0.04356]
[1762737202923,0.49407022,106570.0,106560.0,0.04356]
[1762737203151,0.39664007,106570.0,106560.0,0.04356]
[1762737203335,0.39664007,106570.0,106560.0,0.04456]
[1762737203927,0.39710924,106570.0,106560.0,0.04356]
[1762737204245,0.77726063,106570.0,106560.0,0.04356]
[1762737204451,0.77679146,106570.0,106560.0,0.04356]
[1762737204673,0.87469078,106570.0,106560.0,0.04356]
[1762737204886,0.87469078,106570.0,106560.0,0.04256]
[1762737205058,0.87569078,106570.0,106560.0,0.04256]
[1762737205268,0.1877053,106550.0,106540.0,0.60316511]
[1762737205475,0.11940316,106550.0,106540.0,0.76813259]
[1762737205670,0.21623316,106550.0,106540.0,0.76813259]
[1762737205839,0.0482,106550.0,106540.0,1.14828398]
[1762737206030,0.11214,106550.0,106540.0,1.08250785]
[1762737206292,0.20897,106550.0,106540.0,1.08250785]
[1762737206439,0.20897,106550.0,106540.0,1.08550785]
[1762737206642,0.20897,106550.0,106540.0,1.10167311]
[1762737207214,0.11214,106550.0,106540.0,1.10167311]
[1762737207421,0.20897,106550.0,106540.0,1.18583143]
[1762737207558,0.20897,106550.0,106540.0,1.38583143]
[1762737207758,0.11214,106550.0,106540.0,1.38583143]
[1762737207965,0.0482,106550.0,106540.0,1.39611008]
[1762737208218,0.0482,106550.0,106540.0,3.13601008]
[1762737208431,0.00907873,106550.0,106540.0,3.13626403]
[1762737209500,0.07010873,106550.0,106540.0,3.13626403]
[1762737210345,0.07010873,106550.0,106540.0,2.44432089]
[1762737210728,0.07010873,106550.0,106540.0,2.36190862]
[1762737210958,0.07010873,106550.0,106540.0,2.44437969]
[1762737211927,0.07010873,106550.0,106540.0,2.36190862]
[1762737212238,0.07010873,106550.0,106540.0,2.44438636]
[1762737212448,0.07010873,106550.0,106540.0,2.36190862]
[1762737212786,0.00907873,106550.0,106540.0,2.36190862]
[1762737213197,0.00907873,106550.0,106540.0,1.98175723]
[1762737213399,0.00907873,106550.0,106540.0,2.36190862]
[1762737214653,0.00907873,106550.0,106540.0,2.44441338]
[1762737214858,0.00907873,106550.0,106540.0,2.36190862]
[1762737215427,0.00907873,106550.0,106540.0,2.40931862]
[1762737215839,0.0482,106560.0,106550.0,0.3877053]
[1762737216059,0.0482,106570.0,106560.0,0.51068768]
[1762737216265,0.0482,106570.0,106560.0,0.89083907]
[1762737216437,0.08083,106570.0,106560.0,1.06191215]
[1762737216640,0.17626,106570.0,106560.0,1.06191215]
[1762737216844,0.17626,106570.0,106560.0,0.74774807]
[1762737217689,0.19879359,106570.0,106560.0,0.74974807]
[1762737217898,0.17626,106570.0,106560.0,0.74974807]
[1762737218097,0.19971875,106570.0,106560.0,0.74974807]
[1762737218312,0.38738882,106570.0,106560.0,0.54709255]
[1762737218515,0.42638904,106570.0,106560.0,0.06798731]
[1762737218730,0.42638904,106570.0,106560.0,0.06998731]
[1762737218946,0.80654043,106570.0,106560.0,0.06998731]
[1762737219152,0.18768768,106560.0,106550.0,0.06598731]
[1762737219385,0.38184941,106560.0,106550.0,0.06598731]
[1762737219615,0.31684689,106560.0,106550.0,0.06598731]
[1762737220279,0.31684689,106560.0,106520.0,0.08254229]
[1762737220280,0.18773861,106540.0,106520.0,0.08254229]
[1762737220496,0.56789,106540.0,106530.0,0.0424]
[1762737220717,0.22077461,106540.0,106530.0,0.0424]
[1762737220919,0.28180461,106540.0,106530.0,0.0424]
[1762737221128,0.33180292,106540.0,106530.0,0.0424]
[1762737221485,0.33180292,106540.0,106530.0,0.04253846]
[1762737222166,0.14408,106540.0,106530.0,0.230279]
[1762737222493,0.34966538,106540.0,106530.0,0.04253846]
[1762737222785,0.14408,106540.0,106530.0,0.230279]
[1762737223405,0.38044993,106540.0,106530.0,0.04253846]
[1762737223608,0.36628196,106540.0,106530.0,0.04253846]
[1762737225539,0.36628196,106540.0,106530.0,0.00013846]
[1762737225776,0.36675126,106540.0,106530.0,0.04253846]
[1762737226185,0.36628196,106540.0,106530.0,0.04253846]
[1762737226436,0.36675126,106540.0,106530.0,0.04253846]
[1762737228228,0.78308493,106540.0,106530.0,0.00013846]
[1762737228430,0.79447107,106540.0,106510.0,0.323]
[1762737228678,0.23761816,106520.0,106510.0,0.00014379]
[1762737228881,0.29271445,106520.0,106510.0,0.04254379]
[1762737229037,0.14904939,106520.0,106510.0,0.23031958]
[1762737229253,0.14858,106520.0,106510.0,0.23031958]
[1762737229863,0.14858,106520.0,106510.0,0.23131958]
[1762737230079,0.14858,106520.0,106510.0,0.23331958]
[1762737230482,0.14858,106520.0,106510.0,0.23131958]
[1762737230677,0.14858,106520.0,106510.0,0.23331958]
[1762737232755,0.18225948,106520.0,106510.0,0.23331958]
[1762737233353,0.39348741,106520.0,106510.0,0.04554379]
[1762737233564,0.37001764,106520.0,106510.0,0.04554379]
[1762737234645,0.37048703,106520.0,106510.0,0.04554379]
[1762737234874,0.37001764,106520.0,106510.0,0.04554379]
[1762737235045,0.37048703,106520.0,106510.0,0.04554379]
[1762737237441,0.18272887,106520.0,106510.0,0.04554379]
[1762737237628,0.34794505,106520.0,106510.0,0.04554379]
[1762737237843,0.33680755,106520.0,106510.0,0.04554379]
[1762737238044,0.33680755,106520.0,106510.0,0.00314379]
[1762737238045,0.75267183,106520.0,106510.0,0.00314379]
[1762737238247,0.18779342,106500.0,106480.0,0.2116879]
[1762737238397,0.09398,106490.0,106480.0,0.2116879]
[1762737238615,0.1922,106490.0,106480.0,0.68015091]
[1762737238876,0.21567638,106490.0,106480.0,0.72255091]
[1762737239234,0.40348744,106490.0,106480.0,0.72255091]
[1762737239433,0.1922,106490.0,106480.0,0.72655091]
[1762737239642,0.21567638,106490.0,106480.0,0.72855091]
[1762737239935,0.21567638,106490.0,106480.0,0.72255091]
[1762737240148,0.40348744,106490.0,106480.0,0.0004]
[1762737240372,0.40348744,106490.0,106470.0,0.0004]
[1762737240373,0.1878287,106480.0,106470.0,0.0004]
[1762737240592,0.12791185,106480.0,106470.0,0.0428]
[1762737240817,0.12744228,106480.0,106470.0,0.0428]
[1762737241041,0.31527098,106480.0,106470.0,0.0428]
[1762737241499,0.69589194,106480.0,106470.0,0.0428]
[1762737241699,0.31574055,106480.0,106470.0,0.0428]
[1762737242637,0.69689194,106480.0,106470.0,0.0428]
[1762737242844,0.79131219,106480.0,106470.0,0.0428]
[1762737244256,0.79131219,106480.0,106470.0,0.0004]
[1762737244499,0.18784634,106470.0,106460.0,0.04244]
[1762737244739,0.8037908,106470.0,106460.0,0.04244]
[1762737244941,0.18787984,106460.0,106440.0,0.0004]
[1762737245162,0.60468316,106460.0,106450.0,0.04244]
[1762737245376,0.33154391,106450.0,106440.0,0.04284]
[1762737245629,0.712165,106450.0,106440.0,0.04284]
[1762737245872,0.795855,106450.0,106440.0,0.04284]
[1762737246169,0.41579382,106450.0,106440.0,0.04284]
[1762737246360,0.22791219,106450.0,106440.0,0.04284]
[1762737246511,0.46933016,106450.0,106440.0,0.04284]
[1762737247301,0.28144853,106450.0,106440.0,0.04284]
[1762737247506,0.46933016,106450.0,106440.0,0.04284]
[1762737247758,0.46933016,106450.0,106440.0,0.03784]
[1762737248624,0.19272991,106450.0,106440.0,0.22573928]
[1762737248848,0.38014184,106450.0,106440.0,0.03784]
[1762737249068,0.19272991,106450.0,106440.0,0.22573928]
[1762737249272,0.19226021,106450.0,106440.0,0.03784]
[1762737249425,0.23077025,106450.0,106440.0,0.22573928]
[1762737249621,0.23030055,106450.0,106440.0,0.22573928]
[1762737250037,0.19226021,106450.0,106440.0,0.22573928]
[1762737250406,0.39263116,106450.0,106440.0,0.03784]
[1762737250782,0.79694521,106450.0,106440.0,0.03784]
[1762737250989,0.41679382,106450.0,106440.0,0.03784]
[1762737251224,0.51489555,106450.0,106440.0,0.03784]
[1762737251769,0.47824357,106450.0,106440.0,0.03784]
[1762737251979,0.38061154,106450.0,106440.0,0.03784]
[1762737252414,0.18789928,106440.0,106430.0,0.0004]
[1762737252628,0.30250669,106440.0,106430.0,0.04284]
[1762737252833,0.09158974,106440.0,106430.0,0.23075694]
[1762737253034,0.09112,106440.0,106430.0,0.23075694]
[1762737253179,0.12744838,106440.0,106430.0,0.23075694]
[1762737253784,0.31534766,106440.0,106430.0,0.04284]
[1762737253979,0.31534766,106440.0,106430.0,0.04384]
[1762737254180,0.31534766,106440.0,106430.0,0.0014]
[1762737254404,0.3158174,106440.0,106430.0,0.04384]
[1762737254607,0.3158174,106440.0,106430.0,0.04484]
[1762737254940,0.3158174,106440.0,106410.0,0.08285931]
[1762737254941,0.18793459,106420.0,106410.0,0.08285931]
[1762737255147,0.10748,106420.0,106410.0,0.34486157]
[1762737255350,0.19363,106420.0,106410.0,0.98850947]
[1762737255526,0.19363,106420.0,106410.0,0.90605016]
[1762737255733,0.19363,106420.0,106410.0,0.70605016]
[1762737255891,0.21712182,106420.0,106410.0,0.82075422]
[1762737256093,0.19363,106420.0,106410.0,0.82175422]
[1762737256348,0.19363,106420.0,106410.0,0.70605016]
[1762737256710,0.21712182,106420.0,106410.0,0.82075422]
[1762737257263,0.21712182,106420.0,106410.0,0.78958609]
[1762737257477,0.21712182,106420.0,106410.0,0.78858609]
[1762737257650,0.40505641,106420.0,106410.0,0.78858609]
[1762737257854,0.38156459,106420.0,106410.0,0.45337593]
[1762737258415,0.38156459,106420.0,106410.0,0.13037593]
[1762737259037,0.89467462,106420.0,106410.0,0.12837593]
[1762737259245,0.38203442,106420.0,106410.0,0.04584]
[1762737259442,0.48013615,106420.0,106410.0,0.04584]
[1762737259847,0.48013615,106420.0,106410.0,0.04284]
[1762737260050,0.51631843,106420.0,106410.0,0.04284]
[1762737260259,1.02942846,106420.0,106410.0,0.04384]
[1762737260563,1.02942846,106420.0,106410.0,0.04284]
[1762737260763,0.51631843,106420.0,106410.0,0.04284]
[1762737260969,0.51831843,106420.0,106410.0,0.04284]
[1762737261816,1.03095863,106420.0,106410.0,0.0004]
[1762737262105,1.03142846,106420.0,106410.0,0.0004]
[1762737262851,0.22413454,106410.0,106400.0,0.04244]
[1762737263054,0.40101442,106410.0,106400.0,0.04244]
[1762737263613,0.19776,106410.0,106400.0,0.23040992]
[1762737263820,0.19776,106410.0,106400.0,1.41876593]
[1762737264037,0.19776,106410.0,106400.0,0.62762029]
[1762737264238,0.38571226,106410.0,106400.0,0.44851556]
[1762737264454,0.48381399,106410.0,106400.0,0.12551556]
[1762737264674,1.03457618,106410.0,106400.0,0.04473556]
[1762737264875,0.52146615,106410.0,106400.0,0.08717556]
[1762737265081,0.52146615,106410.0,106400.0,0.04244]
[1762737265082,0.52046615,106410.0,106400.0,0.04244]
[1762737265280,0.52046615,106410.0,106400.0,0.04344]
[1762737265691,0.52046615,106410.0,106400.0,0.04244]
[1762737265899,0.52146615,106410.0,106400.0,0.04244]
[1762737268750,0.18798759,106390.0,106380.0,0.43770406]
[1762737268964,0.35656332,106390.0,106380.0,0.48028788]
[1762737269191,0.40950488,106390.0,106380.0,0.48028788]